bitfinex-derivatives/quotes_ETHF0:USTF0_20250816
["timestamp","ask_amount","ask_price","bid_price","bid_amount"]
[1755373276573,0.326,4427.8,4427.7,1.49]
[1755373276769,0.326,4427.8,4427.7,22.611]
[1755373276964,3.7175,4428.4,4427.8,0.9049]
[1755373277165,4.0439,4428.4,4428.3,1.106]
[1755373277476,4.0439,4428.4,4428.3,22.61]
[1755373278279,3.5332,4428.4,4428.3,22.61]
[1755373278473,4.0439,4428.4,4428.3,22.61]
[1755373278778,4.0429,4428.4,4428.3,22.61]
[1755373278973,0.3254,4428.4,4428.3,22.61]
[1755373279674,0.8398,4428.9,4428.8,0.6054]
[1755373279977,1.0526153,4428.9,4428.8,22.6165]
[1755373280174,1.0526153,4428.9,4428.8,22.1139]
[1755373280673,1.0526153,4428.9,4428.8,21.7244]
[1755373280873,1.0526153,4428.9,4428.8,21.3785]
[1755373281368,0.8406,4428.8,4428.7,21.115]
[1755373281575,1.0526153,4428.8,4428.7,21.7204]
[1755373281870,0.3261,4429.1,4429.0,0.1692]
[1755373281871,0.9972,4429.1,4429.0,0.1692]
[1755373282076,1.1646,4429.1,4429.0,1.4975]
[1755373282377,0.6699,4429.1,4429.0,1.4975]
[1755373283075,0.9208,4429.1,4429.0,1.4975]
[1755373283274,1.1654,4429.1,4429.0,1.4975]
[1755373283774,1.1654,4429.1,4428.9,21.112]
[1755373283775,0.8406,4429.0,4428.9,21.112]
[1755373283974,3.5529,4429.0,4428.9,0.8257]
[1755373284178,3.5529,4429.0,4428.9,0.9949]
[1755373284676,4.0484,4429.0,4428.9,0.6054]
[1755373284871,4.0484,4429.0,4428.8,21.112]
[1755373285074,0.1764,4428.7,4428.6,21.111]
[1755373285282,0.8406,4428.7,4428.6,22.1059]
[1755373285577,0.8406,4428.7,4428.6,22.6085]
[1755373286369,0.4947,4428.9,4428.7,0.3895]
[1755373286572,0.8385,4428.8,4428.7,1.4975]
[1755373286977,0.8393,4428.8,4428.7,1.4975]
[1755373287177,0.4935,4429.1,4429.0,0.6054]
[1755373287379,0.6699,4429.1,4429.0,22.6055]
[1755373287579,1.1646,4429.1,4429.0,22.6055]
[1755373287886,1.1654,4429.1,4429.0,22.6055]
[1755373288680,1.1667,4429.1,4429.0,21.108]
[1755373289082,1.1667,4429.1,4429.0,21.7134]
[1755373289384,1.1667,4429.1,4429.0,22.6055]
[1755373290383,1.1667,4429.1,4429.0,22.1029]
[1755373291084,1.1667,4429.1,4429.0,21.5442]
[1755373291487,1.1667,4429.1,4429.0,22.6055]
[1755373292682,4.3745,4429.1,4429.0,21.5442]
[1755373293680,4.3745,4429.1,4429.0,22.1029]
[1755373295094,4.3745,4429.1,4429.0,22.6055]
[1755373295292,3.5516,4429.1,4429.0,22.6055]
[1755373295586,3.2078,4429.1,4429.0,22.6055]
[1755373295793,3.7033,4429.6,4429.0,21.7134]
[1755373295995,4.0484,4429.6,4429.5,0.6054]
[1755373296196,4.26389871,4429.6,4429.5,1.4975]
[1755373296498,4.26389871,4429.6,4429.5,0.9949]
[1755373296700,4.26389871,4429.6,4429.5,1.4975]
[1755373297697,4.26179871,4429.6,4429.5,1.4975]
[1755373298097,4.26259871,4429.6,4429.5,1.4975]
[1755373298298,4.26389871,4429.6,4429.5,1.4975]
[1755373298691,4.26389871,4429.6,4429.4,21.097]
[1755373298892,0.56059871,4429.5,4429.4,21.097]
[1755373299093,1.05609871,4429.5,4429.4,21.097]
[1755373299296,0.1777,4429.2,4429.1,21.095]
[1755373299500,1.05609871,4429.2,4429.1,21.095]
[1755373300000,0.8406,4428.8,4428.7,21.6984]
[1755373300190,1.05609871,4428.8,4428.7,22.0879]
[1755373300392,1.05609871,4428.8,4428.7,22.5905]
[1755373302097,1.05654816,4428.8,4428.7,22.5905]
[1755373302298,0.55974816,4428.8,4428.7,22.5905]
[1755373302592,0.56109685,4428.8,4428.0,3.2078]
[1755373302798,0.55979685,4428.7,4428.6,0.3459]
[1755373303091,1.05659685,4428.7,4428.6,22.5875]
[1755373306895,1.05449685,4428.7,4428.6,22.5875]
[1755373307100,0.21599685,4428.7,4428.6,22.61]
[1755373307302,3.2078,4429.1,4428.6,22.61]
[1755373307600,3.2078,4429.1,4429.0,1.4975]
[1755373307804,0.3269,4429.6,4429.0,21.6924]
[1755373308003,0.6707,4429.6,4429.5,0.6054]
[1755373308201,1.3822,4429.6,4429.5,22.5835]
[1755373309501,1.1654,4429.6,4429.5,22.5835]
[1755373309703,0.6707,4429.6,4429.5,22.5835]
[1755373309906,1.1765,4429.6,4429.5,22.5835]
[1755373310208,1.3931,4429.6,4429.5,22.5835]
[1755373311109,1.1765,4429.6,4429.5,22.5835]
[1755373311405,0.3269,4429.6,4429.5,22.5835]
[1755373313014,0.5021,4429.6,4429.5,22.5835]
[1755373313912,0.3269,4429.6,4429.5,22.5835]
[1755373317511,3.1359,4429.7,4429.5,22.5835]
[1755373317718,3.5536,4430.2,4430.1,0.6014]
[1755373317910,3.5536,4430.2,4430.1,22.5651]
[1755373320416,3.383,4430.2,4430.1,22.5651]
[1755373321119,3.5536,4430.2,4430.1,22.5651]
[1755373321319,3.7982,4430.2,4430.1,22.5651]
[1755373321621,3.5536,4430.2,4430.1,22.5651]
[1755373322019,4.0594,4430.2,4430.1,22.5651]
[1755373322237,4.438,4430.2,4430.1,22.5651]
[1755373322913,3.5536,4430.2,4430.1,22.5651]
[1755373323416,3.7936,4430.7,4430.6,0.6014]
[1755373323718,4.8894513,4430.7,4430.6,21.2382]
[1755373324421,4.8894513,4430.7,4430.6,21.8717]
[1755373324915,0.5858,4430.3,4430.2,0.9713]
[1755373325121,1.4702,4430.3,4430.2,22.5551]
[1755373325714,0.5858,4430.3,4430.2,22.5551]
[1755373326117,1.4702,4430.3,4430.2,22.5551]
[1755373326918,1.4702,4430.3,4430.2,22.5541]
[1755373328515,0.3786,4430.2,4430.1,21.063]
[1755373328721,4.88930606,4430.2,4430.1,22.5531]
[1755373328924,4.88930606,4430.2,4430.1,21.063]
[1755373331428,0.5858,4429.5,4429.4,1.4901]
[1755373331728,1.4702,4429.5,4429.4,22.5501]
[1755373334517,3.7936,4430.2,4430.1,0.6014]
[1755373334721,4.00520359,4430.2,4430.1,22.5491]
[1755373334926,4.00520359,4430.2,4430.1,21.9205]
[1755373335125,4.24980359,4430.2,4430.1,22.5491]
[1755373335325,4.51100359,4430.2,4430.1,22.5491]
[1755373335526,4.88960359,4430.2,4430.1,22.5491]
[1755373336530,4.00520359,4430.2,4430.1,21.057]
[1755373337226,4.88960359,4430.2,4430.1,22.5471]
[1755373339431,4.00570359,4430.2,4430.1,22.5471]
[1755373339637,4.89730359,4430.2,4430.1,22.5471]
[1755373340424,0.8797,4430.1,4429.6,0.8775]
[1755373340629,0.3426,4429.7,4429.6,1.4628]
[1755373340836,0.3426,4429.7,4429.6,22.5168]
[1755373341530,3.2078,4430.2,4429.6,22.5168]
[1755373341837,0.2119885,4430.1,4430.0,0.5853]
[1755373342132,0.2119885,4430.1,4430.0,22.5158]
[1755373342530,1.4342885,4430.1,4430.0,22.5158]
[1755373342735,1.6898885,4430.1,4430.0,22.5158]
[1755373345536,1.4779,4430.1,4430.0,22.5158]
[1755373345739,1.68940923,4430.1,4430.0,22.5158]
[1755373347937,0.5982,4429.7,4429.6,1.2122]
[1755373348242,1.68940923,4429.7,4429.6,22.5118]
[1755373348436,1.4779,4429.7,4429.6,22.5118]
[1755373348636,1.68941946,4429.7,4429.6,22.5118]
[1755373349442,0.21151946,4429.7,4429.6,22.0056]
[1755373349636,3.2078,4430.3,4429.7,0.6219]
[1755373349837,3.2078,4430.3,4430.2,1.4628]
[1755373350035,3.2078,4430.3,4430.2,22.5118]
[1755373350238,4.6857,4430.3,4430.2,22.5118]
[1755373354552,3.2078,4430.8,4430.3,0.6269]
[1755373354748,0.8551,4431.2,4431.1,0.5853]
[1755373354941,1.4779,4431.2,4431.1,22.5068]
[1755373357049,3.2078,4431.3,4431.1,22.5068]
[1755373357249,3.2078,4431.3,4431.2,0.8775]
[1755373357451,3.8073,4431.3,4431.2,1.4628]
[1755373357746,3.2078,4431.3,4431.2,1.4628]
[1755373357951,3.8073,4431.3,4431.2,1.4628]
[1755373358345,0.5995,4431.3,4431.2,1.4628]
[1755373358544,1.2223,4431.3,4431.2,1.4628]
[1755373358938,4.6857,4431.3,4431.1,21.044]
[1755373359247,1.4779,4431.2,4431.1,21.044]
[1755373359448,1.4779,4431.2,4431.1,22.5068]
[1755373359844,0.5006,4431.8,4431.1,21.6293]
[1755373360044,1.4779,4431.8,4431.7,0.4139]
[1755373360244,1.4779,4431.8,4431.7,21.4539]
[1755373361853,1.68598754,4431.8,4431.7,21.4539]
[1755373364352,1.68598754,4431.8,4431.7,21.04]
[1755373364858,1.68598754,4431.8,4430.5,1.62977867]
[1755373364859,1.70848754,4431.8,4430.9,0.6269]
[1755373365055,0.5982,4431.1,4431.0,22.0748]
[1755373365355,1.4779,4431.1,4431.0,22.4968]
[1755373365548,0.2569,4431.3,4431.2,0.4139]
[1755373365852,3.2078,4431.4,4431.2,1.4628]
[1755373366053,3.2078,4431.4,4431.3,22.4968]
[1755373366651,4.051,4431.4,4431.3,22.4968]
[1755373367454,0.8432,4431.4,4431.3,22.4968]
[1755373367651,0.636,4431.7,4431.4,0.6219]
[1755373367952,3.2078,4431.9,4431.8,0.4139]
[1755373368156,3.4157354,4431.9,4431.8,22.4938]
[1755373368357,4.0152354,4431.9,4431.8,22.4938]
[1755373368654,3.4157354,4431.9,4431.8,22.4938]
[1755373368857,3.9969354,4431.9,4431.8,22.4938]
[1755373369155,4.8705354,4431.9,4431.8,22.4938]
[1755373369851,4.8705354,4431.9,4431.8,21.453]
[1755373370052,4.8705354,4431.9,4431.8,21.031]
[1755373370357,3.9859354,4431.9,4431.8,21.029]
[1755373371049,4.8705354,4431.9,4431.8,21.029]
[1755373371250,4.8705354,4431.9,4431.8,22.5422]
[1755373375759,4.8705354,4431.9,4431.8,21.4665]
[1755373375960,4.8705354,4431.9,4431.8,21.029]
[1755373376558,4.8705354,4431.9,4431.8,22.2875]
[1755373376761,4.8705354,4431.9,4431.8,22.5422]
[1755373377258,3.4157354,4431.9,4431.8,22.5422]
[1755373377459,3.9969354,4431.9,4431.8,22.5422]
[1755373377659,4.8705354,4431.9,4431.8,22.5422]
[1755373377856,4.86969303,4431.9,4431.8,22.5422]
[1755373378960,3.41489303,4431.9,4431.8,22.5422]
[1755373379552,3.67219303,4431.9,4431.8,22.5422]
[1755373379752,3.99609303,4431.9,4431.8,22.5422]
[1755373380558,4.86969303,4431.9,4431.8,22.5422]
[1755373380754,4.86984545,4431.9,4431.8,22.5422]
[1755373381464,4.86984545,4431.9,4431.8,22.2875]
[1755373381869,0.8846,4431.8,4431.6,21.019]
[1755373382070,1.66204545,4431.7,4431.6,21.019]
[1755373382665,0.36894545,4431.7,4431.6,22.5322]
[1755373383058,0.78844545,4431.7,4431.6,22.5322]
[1755373383263,1.66204545,4431.7,4431.6,22.5322]
[1755373385267,0.20724545,4431.7,4431.6,22.5322]
[1755373385459,0.20724545,4431.8,4431.6,21.6226]
[1755373385665,1.41604545,4431.8,4431.7,1.5132]
[1755373385968,1.66204545,4431.8,4431.7,1.5132]
[1755373389770,1.28074545,4431.8,4431.7,1.5132]
[1755373390270,1.66204545,4431.8,4431.7,1.5132]
[1755373393575,1.66204545,4431.8,4431.3,0.8583]
[1755373393576,1.4548,4431.4,4431.3,0.8583]
[1755373393776,1.66204545,4431.4,4431.3,21.8673]
[1755373393970,1.66204545,4431.4,4431.3,22.5222]
[1755373395477,1.66204545,4431.4,4431.3,24.12947867]
[1755373395677,1.28074545,4431.4,4431.3,24.12947867]
[1755373396777,1.28074545,4431.4,4431.3,22.5222]
[1755373397571,1.0735,4431.4,4431.3,22.5222]
[1755373397774,1.27113063,4431.4,4431.3,22.5222]
[1755373400474,1.4671,4431.4,4431.3,22.5222]
[1755373400668,1.66472942,4431.4,4431.3,22.5222]
[1755373400874,1.66472942,4431.4,4431.3,24.12947867]
[1755373401078,1.66472942,4431.4,4431.3,22.5222]
[1755373401375,1.66472942,4431.4,4431.3,24.12947867]
[1755373401882,1.4671,4431.4,4431.3,24.12947867]
[1755373403081,1.4671,4431.4,4431.3,22.5222]
[1755373403282,1.4671,4431.4,4431.3,24.12927181]
[1755373403482,3.2078,4431.9,4431.8,1.0597]
[1755373403777,3.2078,4432.9,4432.8,0.3486]
[1755373403971,3.2078,4433.6,4433.5,1.4558]
[1755373404177,3.2078,4433.6,4433.5,24.05976777]
[1755373404379,3.2078,4433.6,4433.5,22.4548]
[1755373405982,4.0664,4433.6,4433.5,22.4548]
[1755373406183,4.46,4433.6,4433.5,22.4548]
[1755373406388,4.7173,4433.6,4433.5,22.4548]
[1755373406584,4.0664,4433.6,4433.5,0.5718]
[1755373406884,4.0664,4433.6,4433.5,21.1554]
[1755373406885,4.7173,4433.6,4433.5,21.1554]
[1755373407787,4.7173,4433.6,4433.5,21.3967]
[1755373408987,4.7173,4433.6,4433.5,21.1554]
[1755373409988,4.7173,4433.6,4433.5,0.4037]
[1755373410193,4.7173,4433.6,4433.5,21.3937]
[1755373411390,4.7173,4433.6,4433.5,21.1524]
[1755373411592,4.7173,4433.6,4433.2,0.6427]
[1755373411593,1.5095,4433.0,4432.9,0.8184]
[1755373411793,1.5095,4433.0,4432.9,21.8064]
[1755373412292,1.5095,4433.0,4432.9,22.4438]
[1755373413788,1.2522,4433.0,4432.9,22.4438]
[1755373413988,0.8586,4433.0,4432.9,22.4438]
[1755373415689,0.5981,4433.0,4432.9,22.4438]
[1755373415994,0.4356,4433.0,4432.9,22.4438]
[1755373416293,0.6509,4433.2,4433.0,0.884]
[1755373416494,1.0865,4433.2,4433.1,21.7951]
[1755373416688,1.5095,4433.2,4433.1,22.4378]
[1755373417698,3.4683,4433.6,4433.2,0.884]
[1755373417995,4.1956,4433.6,4433.5,1.4558]
[1755373418190,4.7173,4433.6,4433.5,22.4358]
[1755373419399,4.7173,4433.6,4433.5,21.1424]
[1755373419598,4.7173,4433.6,4433.5,20.98]
[1755373420300,4.7173,4433.6,4433.5,21.1424]
[1755373420499,4.7173,4433.6,4433.5,22.0255]
[1755373421894,4.7173,4433.6,4433.5,22.2721]
[1755373422501,4.7173,4433.6,4433.5,22.0255]
[1755373423088,4.7173,4433.6,4433.2,0.6427]
[1755373423289,3.8059,4433.6,4433.3,20.975]
[1755373423594,3.8059,4433.6,4433.3,22.4308]
[1755373423595,1.5095,4433.4,4433.3,22.4308]
[1755373425901,0.2605,4433.5,4433.4,1.4558]
[1755373426101,1.2451,4433.5,4433.4,1.4558]
[1755373426294,1.5095,4433.5,4433.4,1.4558]
[1755373429304,1.5095,4433.5,4433.4,1.2092]
[1755373429504,1.5095,4433.5,4433.3,20.975]
[1755373429693,1.4935,4433.0,4432.9,1.0736]
[1755373429900,1.4935,4433.0,4432.9,22.4149]
[1755373432903,1.4935,4433.0,4432.9,22.1734]
[1755373433501,1.2359,4433.0,4432.9,22.4149]
[1755373434206,1.4935,4433.0,4432.9,22.4149]
[1755373437711,0.5987,4432.5,4432.1,2.02132283]
[1755373437908,1.4935,4432.3,4432.2,21.1269]
[1755373438407,1.4935,4432.3,4431.8,0.2415]
[1755373438613,0.5987,4432.0,4431.9,20.961]
[1755373438813,1.4935,4432.0,4431.9,20.961]
[1755373439315,1.4935,4432.0,4431.7,0.2556]
[1755373439316,1.4935,4431.9,4431.8,0.6606]
[1755373439614,1.4935,4431.9,4431.8,21.6216]
[1755373439814,1.4935,4431.9,4431.8,21.9939]
[1755373440819,1.4935,4431.9,4431.8,22.4069]
[1755373443408,4.054,4432.5,4432.4,0.5765]
[1755373443616,0.5987,4431.6,4431.5,1.0329]
[1755373443816,1.4935,4431.6,4431.5,22.4049]
[1755373444416,1.2359,4431.6,4431.5,1.2044]
[1755373444719,1.4935,4431.6,4431.5,22.4039]
[1755373445609,0.1737,4431.6,4431.4,32.484]
[1755373445816,1.4935,4431.6,4431.5,20.958]
[1755373446220,1.4935,4431.6,4431.5,22.4039]
[1755373450215,1.4935,4431.6,4431.5,21.776]
[1755373450421,1.4935,4431.6,4431.5,22.4039]
[1755373451717,3.2078,4432.0,4431.5,22.4039]
[1755373451918,3.2078,4432.6,4432.5,1.0329]
[1755373452125,3.2078,4432.6,4432.5,22.3989]
[1755373452323,4.054,4432.6,4432.5,0.5765]
[1755373452620,4.054,4432.6,4432.5,22.3989]
[1755373453019,4.7013,4432.6,4432.5,21.1179]
[1755373453418,4.7013,4432.6,4432.5,21.3735]
[1755373453620,4.7013,4432.6,4432.5,21.9859]
[1755373454316,4.7013,4432.6,4432.5,21.1179]
[1755373454517,4.7013,4432.6,4432.5,20.953]
[1755373455124,3.8065,4432.6,4432.5,22.3989]
[1755373455522,4.054,4432.6,4432.5,22.3989]
[1755373455826,3.2078,4432.6,4432.4,20.949]
[1755373456043,3.8065,4432.6,4432.5,20.949]
[1755373456524,4.7013,4432.6,4432.5,20.949]
[1755373457517,4.7238,4432.6,4431.7,0.2556]
[1755373457721,1.4935,4431.5,4431.4,33.3534]
[1755373457918,1.4935,4431.5,4431.4,54.3004]
[1755373459430,1.4935,4431.5,4431.4,32.484]
[1755373459619,1.4935,4431.5,4431.1,1.32485377]
[1755373459620,0.5977,4431.2,4431.1,1.32485377]
[1755373459818,1.4921,4431.2,4431.1,22.51785377]
[1755373460022,1.4921,4431.2,4431.1,0.10155377]
[1755373460331,1.4921,4431.2,4431.1,21.04655377]
[1755373461834,1.4921,4431.2,4431.1,21.21155377]
[1755373462333,1.4921,4431.2,4431.1,21.46645377]
[1755373463430,1.4921,4431.2,4431.1,21.84565377]
[1755373464532,1.4921,4431.2,4431.1,22.51785377]
[1755373464929,0.86,4431.2,4431.1,22.51785377]
[1755373465134,0.5977,4431.2,4431.1,22.51785377]
[1755373465735,3.2078,4431.5,4431.4,0.5892]
[1755373465929,3.2078,4431.5,4431.4,1.4713]
[1755373466535,3.4701,4431.5,4431.4,1.4713]
[1755373466830,3.8069,4431.5,4431.4,1.4713]
[1755373467530,0.5991,4431.5,4431.4,1.4713]
[1755373467726,0.6315,4431.7,4431.5,0.8821]
[1755373467927,0.6315,4431.7,4431.1,21.04655377]
[1755373467928,0.3368,4431.8,4431.7,1.0471]
[1755373468133,0.5991,4431.8,4431.7,22.4133]
[1755373468335,1.4921,4431.8,4431.7,22.4133]
[1755373468536,1.2292,4432.0,4431.9,0.5892]
[1755373468737,1.4921,4432.0,4431.9,1.4713]
[1755373471536,3.2078,4432.1,4431.9,0.5892]
[1755373471734,3.2078,4432.1,4432.0,1.4713]
[1755373471735,3.4701,4432.1,4432.0,1.4713]
[1755373472032,4.6999,4432.1,4432.0,1.4713]
[1755373473934,0.6315,4432.0,4431.7,20.938]
[1755373474140,1.4921,4431.8,4431.7,20.938]
[1755373474334,1.4921,4431.8,4431.7,21.103]
[1755373476037,1.4921,4431.8,4431.7,20.938]
[1755373476238,0.5977,4431.8,4431.1,0.73565377]
[1755373476439,0.5977,4431.3,4431.2,21.5262]
[1755373476636,1.4921,4431.3,4431.2,22.4083]
[1755373477237,1.4921,4431.3,4431.2,22.4063]
[1755373478244,0.5977,4431.3,4431.2,22.4063]
[1755373478445,0.3368,4431.3,4431.2,22.4063]
[1755373478742,3.4701,4431.5,4431.4,0.5892]
[1755373478946,3.4701,4431.5,4431.4,22.4063]
[1755373479339,3.633,4431.5,4431.4,22.4063]
[1755373479538,4.0678,4431.5,4431.4,22.4063]
[1755373479742,4.6999,4431.5,4431.4,22.4063]
[1755373479948,4.6999,4431.5,4431.4,1.4713]
[1755373480141,4.6999,4431.5,4431.4,22.4053]
[1755373480640,4.437,4431.5,4431.4,22.4053]
[1755373481241,4.6999,4431.5,4431.4,22.4053]
[1755373482643,0.9669,4431.2,4431.1,0.69075377]
[1755373482849,1.4921,4431.2,4431.1,22.50485377]
[1755373485740,1.4921,4431.2,4431.1,0.10155377]
[1755373486045,1.4921,4431.2,4431.1,0.52955377]
[1755373486247,0.1739,4431.2,4431.1,1.57285377]
[1755373487849,0.2623,4431.4,4431.1,1.57285377]
[1755373488048,3.2078,4431.5,4431.4,0.5892]
[1755373488352,3.8069,4431.5,4431.4,22.3993]
[1755373488554,4.6999,4431.5,4431.4,22.3993]
[1755373489149,4.6999,4431.5,4431.4,21.5172]
[1755373489347,4.6999,4431.5,4431.4,21.093]
[1755373492757,4.6999,4431.5,4431.4,20.928]
[1755373492962,4.6999,4431.5,4431.4,22.1492]
[1755373493162,4.6999,4431.5,4431.4,22.4111]
[1755373500657,4.6999,4431.5,4431.4,21.0896]
[1755373500867,4.6999,4431.5,4431.4,22.4111]
[1755373503865,4.6999,4431.5,4431.1,0.10155377]
[1755373504166,1.5051,4431.4,4431.3,0.4209]
[1755373504360,1.5051,4431.4,4431.3,1.0718]
[1755373504564,1.5051,4431.4,4431.3,1.3232]
[1755373504760,1.70779423,4431.4,4431.3,1.3232]
[1755373504965,1.70779423,4431.4,4431.3,1.4831]
[1755373508369,1.70781964,4431.4,4431.3,1.4831]
[1755373510573,0.20271964,4431.4,4431.3,1.4831]
[1755373510874,0.46831964,4431.4,4431.3,1.4831]
[1755373511069,1.70781964,4431.4,4431.3,1.4831]
[1755373513372,0.20271964,4431.4,4431.3,1.5056]
[1755373513567,3.2078,4432.2,4432.1,0.5808]
[1755373513767,3.2078,4432.7,4432.1,21.4908]
[1755373513969,1.5051,4432.5,4432.4,1.2317]
[1755373514273,1.5051,4432.5,4432.4,22.3931]
[1755373518775,1.5051,4432.5,4431.6,3.2078]
[1755373518776,0.0225,4432.5,4431.6,4.086]
[1755373518978,1.2099,4431.7,4431.6,4.6771]
[1755373519273,1.4742,4431.7,4431.6,25.5811]
[1755373519482,0.8866,4431.9,4431.6,20.904]
[1755373519671,3.2078,4432.1,4431.6,20.904]
[1755373519672,0.5876,4431.7,4431.6,20.904]
[1755373519868,0.5876,4431.2,4431.1,0.10155377]
[1755373520075,0.5876,4431.2,4430.8,20.902]
[1755373520076,4.7045,4431.2,4430.8,20.902]
[1755373520275,0.1659,4430.9,4430.5,20.902]
[1755373520470,4.682,4430.6,4430.5,20.902]
[1755373522675,3.7954,4430.6,4430.1,32.49]
[1755373522875,1.4742,4429.9,4429.8,0.1643]
[1755373523080,1.4742,4429.9,4429.8,21.0663]
[1755373525977,0.8866,4429.8,4429.7,21.0663]
[1755373526286,1.4742,4429.8,4429.7,21.0663]
[1755373526685,1.4742,4429.8,4429.7,21.3162]
[1755373527191,1.4742,4429.8,4429.7,21.5745]
[1755373527379,1.4742,4429.8,4429.7,21.9491]
[1755373528982,0.2643,4429.7,4428.9,0.2537]
[1755373529190,0.5876,4429.1,4429.0,21.3236]
[1755373529484,1.4742,4429.1,4429.0,22.3703]
[1755373530891,1.2197,4429.1,4429.0,22.3703]
[1755373531685,3.2078,4429.5,4429.4,0.3328]
[1755373531986,3.4721,4430.1,4429.4,21.4901]
[1755373532187,4.0597,4430.1,4430.0,0.5911]
[1755373532387,4.682,4430.1,4430.0,1.4693]
[1755373535191,4.682,4430.1,4430.0,1.2156]
[1755373535488,0.5876,4429.7,4429.6,20.9]
[1755373535680,1.4742,4429.7,4429.6,20.9]
[1755373535885,1.4742,4429.7,4429.6,21.3142]
[1755373536085,3.2078,4430.1,4428.9,0.6245]
[1755373536086,0.3678,4429.5,4428.9,0.6245]
[1755373536286,0.5876,4429.0,4428.9,1.2156]
[1755373536490,1.4742,4429.0,4428.9,22.3683]
[1755373542195,0.4128,4428.5,4428.4,0.3746]
[1755373542495,1.4742,4428.5,4428.4,22.3663]
[1755373543393,0.5876,4428.5,4428.4,22.3663]
[1755373543588,0.4302,4428.7,4428.6,0.1685]
[1755373543895,1.4742,4428.7,4428.6,1.4693]
[1755373549691,1.4742,4428.7,4428.6,1.0471]
[1755373550096,1.4742,4428.7,4428.6,1.4739]
[1755373552197,1.67620094,4428.7,4428.6,1.4739]
[1755373552496,1.67620094,4428.7,4427.9,1.6004053]
[1755373552696,1.4763,4428.0,4427.9,1.4783]
[1755373552997,1.4763,4428.0,4427.9,22.3703]
[1755373555494,0.8173,4428.0,4427.4,32.511]
[1755373555803,3.2078,4428.4,4427.4,32.511]
[1755373555804,1.4763,4428.3,4428.2,0.1624]
[1755373556097,1.67338041,4428.3,4428.2,0.4098]
[1755373556400,1.67338041,4428.3,4428.2,0.8022]
[1755373556898,1.67338041,4428.3,4428.2,1.215]
[1755373557102,1.67338041,4428.3,4428.2,1.4783]
[1755373557899,1.67338041,4428.3,4428.2,1.215]
[1755373558405,1.67338041,4428.3,4428.2,1.4783]
[1755373560206,1.67338041,4428.3,4428.2,0.8226]
[1755373560595,1.67338041,4428.3,4428.2,1.4783]
[1755373562906,1.67338041,4428.3,4428.2,1.215]
[1755373563123,1.67338041,4428.3,4428.2,0.1624]
[1755373563502,0.5777,4428.0,4427.9,0.2474]
[1755373563807,1.4763,4428.0,4427.9,22.102]
[1755373564003,1.4763,4428.0,4427.9,22.3653]
[1755373564404,1.4763,4427.5,4427.4,21.6882]
[1755373564708,1.4763,4427.5,4427.4,20.886]
[1755373564709,1.67348623,4427.5,4427.4,20.886]
[1755373566310,1.67351805,4427.5,4426.5,0.2474]
[1755373566607,4.6841,4427.0,4426.9,1.215]
[1755373566808,4.88131805,4427.0,4426.9,1.4783]
[1755373567510,4.6841,4427.0,4426.9,1.4783]
[1755373570511,1.4763,4426.7,4426.6,22.3643]
[1755373570704,1.4763,4426.7,4426.6,1.4783]
[1755373570907,1.4763,4426.7,4426.6,22.3633]
[1755373571108,0.5777,4426.7,4426.6,0.1624]
[1755373571304,0.5777,4426.7,4426.6,1.0515]
[1755373571509,3.7855,4427.0,4426.9,1.4783]
[1755373571711,4.22208677,4427.0,4426.9,1.4783]
[1755373572106,4.88108677,4427.0,4426.9,1.4783]
[1755373572708,3.2078,4427.0,4426.9,1.4783]
[1755373573411,3.2078,4427.0,4426.9,1.5008]
[1755373576308,3.2078,4427.0,4426.9,1.4783]
[1755373579109,3.4488,4427.0,4426.9,1.4783]
[1755373579311,4.6613,4427.0,4426.9,1.4783]
[1755373580813,3.7891,4427.0,4426.7,20.884]
[1755373581015,1.4535,4426.9,4426.8,1.4667]
[1755373583812,0.4059,4426.9,4426.8,1.4667]
[1755373584014,0.241,4426.9,4426.8,1.4667]
[1755373584418,0.8223,4426.9,4426.8,1.4667]
[1755373584610,1.4535,4426.9,4426.8,1.4667]
[1755373587815,3.2078,4427.0,4426.8,1.2146]
[1755373588013,1.476,4426.9,4426.7,20.884]
[1755373588223,1.65135791,4426.8,4426.7,20.884]
[1755373593315,0.19785791,4426.8,4426.7,20.9065]
[1755373593516,0.241,4427.5,4426.8,0.631]
[1755373593726,0.8223,4427.5,4427.4,0.5873]
[1755373593926,1.6515103,4427.5,4427.4,22.3377]
[1755373595715,0.1980103,4427.5,4427.4,22.3602]
[1755373596014,3.2078,4428.1,4428.0,0.3385]
[1755373596215,3.40583798,4428.1,4428.0,21.708]
[1755373596421,4.61613798,4428.1,4428.0,21.708]
[1755373596834,4.85933798,4428.1,4428.0,21.708]
[1755373597029,4.85933798,4428.1,4428.0,20.869]
[1755373597223,4.85933798,4428.1,4428.0,21.2883]
[1755373597425,4.85933798,4428.1,4428.0,21.708]
[1755373598919,4.61613798,4428.1,4428.0,21.708]
[1755373599325,4.6613,4428.1,4428.0,21.708]
[1755373599826,4.85906439,4428.1,4428.0,21.4559]
[1755373600124,4.85906439,4428.1,4428.0,20.869]
[1755373600526,4.85906439,4428.1,4428.0,21.0399]
[1755373600830,4.85906439,4428.1,4428.0,21.2883]
[1755373601031,4.85906439,4428.1,4428.0,0.4193]
[1755373601326,4.85906439,4428.1,4428.0,0.839]
[1755373601724,4.61586439,4428.1,4428.0,0.839]
[1755373601919,3.2078,4428.1,4428.0,0.8615]
[1755373602127,3.4488,4428.7,4428.0,0.361]
[1755373602329,3.4488,4428.7,4428.6,0.839]